Cogmind - Beta 16 @@@ ROGUE MODE // 2026.01.26 @ 15:47:36 Player: applejuice Result: Destroyed by D-53 Grenadier with Mini Grenade Launcher Performance ------------- Evolutions (0) 0 Regions Visited (2) 400 Robots Destroyed (11) 55 Value Destroyed (301) 301 Prototype IDs (0) 0 Alien Tech Used (0) 0 Bonus (0) 0 TOTAL SCORE: 756 Bonus ------- None Cogmind --------- Core Integrity 0/250 Matter 300/300 Energy 99/100 System Corruption 0% Temperature Cool (0) Movement Core (100) Ox1 Location -10/Mines Parts ------- > --- POWER (1) -------- (None) > --- PROPULSION (2) --- (None) > --- UTILITY (2) ------ Small Storage Unit Signal Interpreter > --- WEAPON (2) ------- (None) > --- INVENTORY (8) ---- Light Ion Engine Sensor Array Improved Targeting Computer Improved Targeting Computer Assault Rifle Mining Laser Peak State ------------ > --- POWER ------------ Ion Engine > --- PROPULSION ------- Aluminum Leg Aluminum Leg > --- UTILITY ---------- Improved Heat Sink Small Storage Unit > --- WEAPON ----------- Assault Rifle Assault Rifle > --- INVENTORY -------- Light Ion Engine Improved Targeting Computer Improved Targeting Computer Improved Targeting Computer Assault Rifle Assault Rifle Assault Rifle Assault Rifle [Rating: 10] Favorites ----------- Power Ion Engine Engine Ion Engine Propulsion Aluminum Leg Leg Aluminum Leg Utility Small Storage Unit Device Tractor Beam Storage Small Storage Unit Processor Signal Interpreter Weapon Assault Rifle Ballistic Gun Assault Rifle Special Weapon Mining Laser Build | -11 -10 -10 ------- Run | Yrd Mat Min Slots Evolved . | . . . Power . | . . . Propulsion . | . . . Utility . | . . . Weapon . | . . . Parts Attached 17 | 8 7 2 Power 2 | 2 . . Engine 2 | 2 . . Core . | . . . Reactor . | . . . Propulsion 4 | 2 1 1 Treads . | . . . Leg 4 | 2 1 1 Wheel . | . . . Hover . | . . . Flight . | . . . Utility 4 | 2 2 . Device 2 | 1 1 . Storage 1 | 1 . . Processor 1 | . 1 . Hackware . | . . . Protection . | . . . Artifact . | . . . Weapon 7 | 2 4 1 Energy Gun . | . . . Energy Cannon . | . . . Ballistic Gun 6 | 2 3 1 Ballistic Cannon . | . . . Launcher . | . . . Special Weapon 1 | . 1 . Impact Weapon . | . . . Slashing Weapon . | . . . Piercing Weapon . | . . . Special Melee Weapon . | . . . Unidentified Prototypes . | . . . Parts Lost 7 | . . 7 Power 1 | . . 1 Propulsion 3 | . . 3 Utility . | . . . Weapon 3 | . . 3 Highest Loss Streak 7 | . . 7 To Critical Strikes . | . . . Average Backups 7 | 1 7 7 Power . | . 1 1 Propulsion . | . . . Utility 2 | . 2 3 Weapon 3 | . 3 2 Tool/Special . | . . . Unused Backups 7 | . 3 4 Power . | . . . Propulsion . | . . . Utility 4 | . 1 3 Weapon 3 | . 2 1 Tool/Special . | . . . Average Slot Usage (%) 99 | . 99 98 Engine 14 | . 14 14 Leg 28 | . 28 28 Device 5 | . 5 . Storage 14 | . 14 14 Processor 8 | . 8 14 Ballistic Gun 22 | . 22 26 Special Weapon 5 | . 5 . Peak Build Rating 10 | 7 10 8 Average Rating 7 | 5 8 7 On Entrance 5 | . 7 8 Avg Prop Armor Cover (%) . | . . . Naked Turns . | . . . Heaviest Build 15 | 13 15 14 Greatest Support 20 | 20 20 20 Greatest Overweight (x) 2 | . . 2 Average Overweight (x) . | . . . Largest Inventory Capacity 8 | 8 8 8 Average Capacity 7 | 6 8 8 Most Carried 8 | 2 8 8 Average Carried 7 | 1 7 7 Final Capacity 8 | 8 8 8 Final Carried 8 | 2 8 6 Class Distribution -------------------- 100% | Mutant Dominant Class ---------------- Mutant | -10/Materials Mutant | -10/Mines Resources | -11 -10 -10 ----------- Run | Yrd Mat Min Matter Collected 590 | 250 340 . Remotely 321 | 173 148 . Salvage Created 484 | 73 411 . Parts 26 | 2 24 . Haulers Intercepted 2 | . 2 . Recyclers Shooed . | . . . Parts Field Recycled . | . . . Retrieved Matter . | . . . Parts Self-Destructed . | . . . Prevented . | . . . Parts Restored . | . . . Kills | -11 -10 -10 ------- Run | Yrd Mat Min Combat Hostiles Destroyed 7 | . 7 . Guns 7 | . 7 . Classes Destroyed 4 | 1 3 . Tunneler 1 | . 1 . Hauler 2 | . 2 . Recycler 1 | 1 . . Grunt 7 | . 7 . Best Kill Streak 4 | 1 4 . Combat Bots Only 4 | . 4 . Max Kills in Single Turn 1 | 1 1 . Gunslinging . | . . . Exploded . | . . . Melee . | . . . Uniques/NPCs Destroyed . | . . . Combat | -11 -10 -10 -------- Run | Yrd Mat Min Hostile Shots Fired 60 | . 45 15 Missed 10 | . 8 2 Hits 50 | . 37 13 Projectile 50 | . 37 13 AOE 15 | . . 15 Damage Taken 1023 | . 447 576 Core 266 | . 108 158 Absorbed by Shields . | . . . Core Remaining (%) 100 | 100 . . Volleys Fired 51 | 5 46 . Largest 2 | 2 2 . Hottest 120 | 40 120 . Shots Fired 102 | 10 92 . Gun 98 | 10 88 . Cannon . | . . . Launcher . | . . . Special 4 | . 4 . Kinetic 98 | 10 88 . Thermal 4 | . 4 . Explosive . | . . . Electromagnetic . | . . . Robot Hit Streak 12 | 10 12 . Robot Miss Streak 3 | . 3 . Penetration Max . | . . . Secondary Targets 1 | . 1 . Max Gunslinging Chain 1 | . 1 . Shots Hit Robots 72 | 10 62 . Core Hits 24 | 3 21 . Critical Kills . | . . . Critical Parts Destroyed . | . . . Critical Strikes . | . . . Melee Attacks . | . . . Impact . | . . . Slashing . | . . . Piercing . | . . . Sneak Attacks . | . . . Combat Hostiles . | . . . Follow-up Attacks . | . . . Damage Inflicted 890 | 75 804 11 Guns 847 | 75 772 . Cannons . | . . . Explosions . | . . . Melee . | . . . Ramming 43 | . 32 11 Kinetic 847 | 75 772 . Thermal . | . . . Explosive . | . . . Electromagnetic . | . . . Impact . | . . . Slashing . | . . . Piercing . | . . . Highest Corruption . | . . . Average Corruption . | . . . Corruption Purged . | . . . Corruption Blocked . | . . . Overload Shots . | . . . Overflow Damage . | . . . Projectiles . | . . . Explosions . | . . . Melee . | . . . Knockbacks . | . . . Impact . | . . . Kinetic . | . . . Secondary . | . . . Self-Inflicted Damage . | . . . Shots . | . . . Rammed . | . . . Targets Rammed 9 | . 7 2 Kicked 9 | . 7 2 Crushed . | . . . Highest Temperature 20 | . 20 . Average Temperature 7 | . 7 . Received Heat Transfer 252 | . 252 . Siege Activations . | . . . Martial Activations . | . . . Shielding Activations . | . . . Robots Disrupted . | . . . Combat Hostiles . | . . . Robots Corrupted . | . . . Combat Hostiles . | . . . Parts Fried . | . . . Impact Corruptions . | . . . Robots Melted . | . . . Combat Hostiles . | . . . Parts Melted . | . . . Heat Transferred . | . . . Parts Sabotaged . | . . . Parts Stolen . | . . . Parts Stripped . | . . . Power Chain Reactions . | . . . Alert | -11 -10 -10 ------- Run | Yrd Mat Min Maximum Alert Level . | . . . Low Security (%) 100 | 100 100 100 Level 1 . | . . . Level 2 . | . . . Level 3 . | . . . Level 4 . | . . . Level 5 . | . . . High Security . | . . . Max Security . | . . . Peak Influence 99 | 5 99 25 Initial 25 | . . 25 Average 18 | 1 20 9 Influence Increases 227 | 5 222 . Destroy 0b10 Robot/C 140 | . 140 . Destroy 0b10 Robot/NC 20 | 5 15 . Destroy Leader 34 | . 34 . Disable Machine 30 | . 30 . Destroy Structure 3 | . 3 . Influence Decreases 227 | 5 155 67 Entered New Map 42 | . . 42 Time Decay 185 | 5 155 25 Squads Dispatched 1 | . 1 . Investigation . | . . . Extermination . | . . . Reinforcement 1 | . 1 . Assault . | . . . Garrison . | . . . Intercept . | . . . Searches Triggered . | . . . Construction Impeded . | . . . Haulers Reinforced . | . . . Active Scanning Responses . | . . . Cargo Convoy Interrupts . | . . . Stealth | -11 -10 -10 --------- Run | Yrd Mat Min Distress Signals 1 | . 1 . Communications Jammed . | . . . Distress Signals . | . . . Times Spotted 20 | . 18 2 Peak Tracking Total 4 | . 4 2 Tactical Retreats . | . . . Traps | -11 -10 -10 ------- Run | Yrd Mat Min Traps Triggered . | . . . Indirectly . | . . . Trap Hack Attempts . | . . . Triggered . | . . . Disarmed . | . . . Reprogrammed . | . . . Reused . | . . . Traps Extracted . | . . . Installed . | . . . Triggered . | . . . Machines | -11 -10 -10 ---------- Run | Yrd Mat Min Machines Disabled 2 | . 2 . Max in Single Turn 1 | . 1 . Machines Repaired . | . . . Machines Dismantled . | . . . Machines Sabotaged . | . . . Overloaded Fab Kills . | . . . Hacking | -11 -10 -10 --------- Run | Yrd Mat Min Machines Accessed 5 | . 5 . Terminals 5 | . 5 . Fabricators . | . . . Repair Stations . | . . . Recycling Units . | . . . Scanalyzers . | . . . Garrison Access . | . . . Total Hacks 10 | . 10 . Successful 2 | . 2 . Failed 8 | . 8 . Catastrophic 1 | . 1 . Database Lockouts . | . . . Manual 10 | . 10 . Terminals 10 | . 10 . Fabricators . | . . . Repair Stations . | . . . Recycling Units . | . . . Scanalyzers . | . . . Garrison Access . | . . . Terminal Hacks . | . . . Fabricator Hacks . | . . . Repair Station Hacks . | . . . Recycling Unit Hacks . | . . . Scanalyzer . | . . . Garrison Access Hacks . | . . . Unauthorized Hacks 2 | . 2 . Terminals 2 | . 2 . Botnet 2 | . 2 . Fabricators . | . . . Repair Stations . | . . . Recycling Units . | . . . Scanalyzers . | . . . Garrison Access . | . . . Data Cores Recovered . | . . . Used . | . . . Hacking Detections 5 | . 5 . Full Trace Events . | . . . Feedback Events . | . . . Feedback Blocked . | . . . Robot Schematics Acquired . | . . . Robots Built . | . . . Authchips . | . . . Time . | . . . Total Robot Build Rating . | . . . Part Schematics Acquired . | . . . Parts Built . | . . . Authchips . | . . . Time . | . . . Total Part Build Rating . | . . . Part Studies Acquired . | . . . Parts Repaired . | . . . Time . | . . . Parts Recycled . | . . . Recycled Matter . | . . . Retrieved Matter . | . . . Retrieved Components . | . . . Parts Scanalyzed . | . . . Part Schematics Acquired . | . . . Parts Damaged . | . . . Bothacking | -11 -10 -10 ------------ Run | Yrd Mat Min Used RIF Installer . | . . . Robots Hacked . | . . . Non-combat . | . . . Combat . | . . . Robot Hacks Applied . | . . . Relay Couplers Released . | . . . Fabnet Peak Effective % . | . . . Robots Rewired . | . . . Allies Hacked . | . . . Hacks Repelled . | . . . Allies | -11 -10 -10 -------- Run | Yrd Mat Min Total Allies . | . . . Largest Group . | . . . Highest-Rated Group . | . . . Highest-Rated Ally . | . . . Total Orders . | . . . Ally Attacks . | . . . Total Damage . | . . . Kills . | . . . Allies Corrupted . | . . . Allies Melted . | . . . Intel | -11 -10 -10 ------- Run | Yrd Mat Min Active Infowar (turns) . | . . . Robot Analysis Total . | . . . Derelict Logs Recovered . | . . . Drone Launches . | . . . Drone Recoveries . | . . . Exploration | -11 -10 -10 ------------- Run | Yrd Mat Min Turns Passed 1177 | 70 1019 88 Spaces Moved 775 | 39 666 70 Core 6 | 3 . 3 Treads . | . . . Legs 769 | 36 666 67 Wheels . | . . . Hover . | . . . Flight . | . . . Fastest Speed 50 | 50 120 100 Average Speed 119 | 114 120 119 Slowest Speed 150 | 120 120 150 Overloaded Moves . | . . . Propulsion Burnouts . | . . . Robots Hopped . | . . . Potential Cave-ins . | . . . Cave-ins Triggered . | . . . Exploration Rate (%) 26 | 3 62 15 Regions Visited 2 Branch Regions 1 Pre-discovered Areas . | . . . Known Exits Taken 1 | . 1 . Unknown Exits Taken 1 | 1 . . Scrap Searched . | . . . Spaces Dug 1 | . 1 . Terrain Destroyed 2 | . 2 . Melee . | . . . Projectile 2 | . 2 . AOE . | . . . Terrain Rammed . | . . . Walls Destroyed . | . . . Machines Disabled . | . . . Actions | -11 -10 -10 --------- Run | Yrd Mat Min Total 913 | 52 787 74 Wait 42 | . 42 . Move 773 | 38 665 70 Hop . | . . . Pick Up 10 | 1 9 . Fast Attach 12 | 7 5 . Attach 2 | . . 2 Detach 2 | . 2 . Swap 3 | 1 2 . Drop 9 | . 9 . Fire 51 | 5 46 . Melee . | . . . Ram . | . . . Kick 9 | . 7 2 Crush . | . . . Escape Stasis . | . . . Rewire . | . . . Trap . | . . . Miscellaneous . | . . . Route ------- -11/Scrapyard -10/Materials (discovered 4 exits: *Mat x3 / *Min) -10/Mines (discovered 1 exit: *Mat) History --------- Turn | Location | Event 7 | -11/Scrapyard | Discovered new exit (range 15) 71 | -11/Scrapyard | Entered Materials 229 | -10/Materials | Discovered new exit (range 16) 306 | -10/Materials | Build established: Mutant 550 | -10/Materials | Identified exit to Materials 802 | -10/Materials | Discovered exit to Materials (range 15) 1066 | -10/Materials | Discovered new exit (range 15) 1089 | -10/Materials | Identified exit to Mines 1090 | -10/Materials | Discovered exit to Materials (range 15) 1090 | -10/Materials | Entered Mines 1105 | -10/Mines | Discovered exit to Materials (range 5) 1151 | -10/Mines | Assembled infested the area 1171 | -10/Mines | Core integrity fell below 50% 1178 | -10/Mines | Core integrity fell below 20% 1178 | -10/Mines | Destroyed by D-53 Grenadier with Mini Grenade Launcher Last Messages --------------- 01105_ EXIT=FOUND: MATERIALS 01122_ K-01 Serf collects debris. 01151_ ALERT: Infestation in the mines, dispatching Demolisher response squad. 01151_ K-01 Serf collects debris. 01154_ Kicked U-05 Engineer. 01155_ K-01 Serf collects debris. 01160_ Kicked R-06 Scavenger. 01165_ C-45 Heavy ARC bursts open, deploying its payload. 01165_ D-53 Grenadier unfolds itself. 01166_ Aluminum Leg destroyed. 01167_ The unstable cave ceiling collapses. 01168_ Assault Rifle destroyed. 01171_ Ion Engine destroyed. 01174_ Aluminum Leg destroyed. 01175_ Assault Rifle destroyed. 01175_ Aluminum Leg destroyed. 01176_ Assault Rifle destroyed. 01177_ The unstable cave ceiling collapses. Map ----- +----------------------------------------------------+ | | | | | | | | | | | | | | | | | | | | | | | | | | | | | | | | | | | | | | | ?????????????????????????????????? | | ??????????????????#########??????? | | ?????????????????## # ###????? | | ??????????????#### ##???? | | ?????????????## ####? | | ????????????## #? | | ????????????# @k #? | | ????????????# r #? | | ????????????# d #? | | ????????????# # d # < #? | | ????????????# ## # #? | | ????????????# ###########? | | ????????????# # ##??????????? | | # ?????????# #####???????????? | | # ###?????### ######???????????? | | ??????# #???????????? | | ?????# #### #???????????? | | ###?# #??# #???????????? | | ## #### ##??????????? | | ?????# ##?????????? | | ??????# ###???????? | | ??????## #### ##??????? | | ???????# #??# #??????? | | ???????# #??## ##??????? | | ??????# ##???## ###???????? | | ????? ??????#####?????????? | | ??? #????????????????????? | | ?? #?????????????????????? | | ?# #??????????????????????? | | ?# ???????????????????????? | | ?? #???????????????????????? | +----------------------------------------------------+ Best States ------------- Heat Dissipation 39 Energy Generation 10 Energy Capacity 250 Matter Stores 300 Matter Capacity 300 Sight Range 16 Terrain Scan Density 10 Evasion (%) 55 Item Schematics ----------------- None Robot Schematics ------------------ None Fabricated ------------ Nothing Repaired ---------- Nothing Studied --------- None Alien Tech Used ----------------- None Achievements -------------- None Challenges ------------ None Game ------ Seed BiocellCouplerScanner Manual? 0 Play Time 00:08:09 Cumulative 31.2 hours Start 2026.01.26 @ 15:40:12 End 2026.01.26 @ 15:47:36 Sessions 1 Manual Loads 0 Difficulty Rogue Special Mode None Game No. 37 Rogue 37 Adventurer 0 Explorer 0 Win Type - Total 0 Types 0/0/0/0/0/0/0/0/0/0 Lore% 29 Gallery% 30 Achievement% 26 Wizard Run 0 Options --------- Layout 1 ASCII 0 Keyboard 1 Movement Numpad Keybinds 0 Fullscreen 1 Font 48/Smallcaps Map View 50x35 Zoom Use 0% Tactical HUD 1 Map Filters NONE Filters NONE Steam 1 RUN: 29386e82-38ba-4eb4-933e-c54426ddb5f6